[Event "Titled Tuesday Blitz March 15 Early 2022"]
[White "Kanyamarala, Trisha"]
[Black "Perez Gormaz, Matias"]
[WhiteFideId "45004722"]
[BlackFideId "3406342"]
[WhiteElo "2047"]
[BlackElo "2327"]
[Result "0-1"]
[Round "03"]
[TimeControl "180+1"]
[Date "2022.03.15"]
[WhiteClock "0:00:16"]
[BlackClock "0:00:54"]

1. c4 {[%clk 0:02:54]}  e6 {[%clk 0:02:59]} 2. Nc3 {[%clk 0:02:53]}  d5 {[%clk 0:03:00]} 3. cxd5 {[%clk 0:02:47]}  exd5 {[%clk 0:03:00]} 4. d4 {[%clk 0:02:47]}  c6 {[%clk 0:02:58]} 5. Bf4 {[%clk 0:02:47]}  Bd6 {[%clk 0:02:58]} 6. e3 {[%clk 0:02:46]}  Bxf4 {[%clk 0:02:58]} 7. exf4 {[%clk 0:02:47]}  Qb6 {[%clk 0:02:53]} 8. Qd2 {[%clk 0:02:40]}  Ne7 {[%clk 0:02:53]} 9. Nf3 {[%clk 0:02:37]}  Bg4 {[%clk 0:02:49]} 10. Be2 {[%clk 0:02:30]}  Bxf3 {[%clk 0:02:48]} 11. Bxf3 {[%clk 0:02:30]}  O-O {[%clk 0:02:49]} 12. O-O {[%clk 0:02:28]}  Nf5 {[%clk 0:02:49]} 13. Rad1 {[%clk 0:02:28]}  Nd6 {[%clk 0:02:31]} 14. Na4 {[%clk 0:02:22]}  Qc7 {[%clk 0:02:24]} 15. b3 {[%clk 0:02:20]}  Nd7 {[%clk 0:02:23]} 16. Rfe1 {[%clk 0:02:15]}  Rfe8 {[%clk 0:02:23]} 17. Qc2 {[%clk 0:02:09]}  Nf6 {[%clk 0:02:21]} 18. Nc5 {[%clk 0:02:07]}  Re7 {[%clk 0:02:18]} 19. Nd3 {[%clk 0:02:04]}  Nfe4 {[%clk 0:02:12]} 20. Ne5 {[%clk 0:02:00]}  f6 {[%clk 0:02:11]} 21. Ng4 {[%clk 0:01:58]}  Rae8 {[%clk 0:02:10]} 22. Bxe4 {[%clk 0:01:58]}  Nxe4 {[%clk 0:02:03]} 23. Ne3 {[%clk 0:01:55]}  Qxf4 {[%clk 0:02:01]} 24. h3 {[%clk 0:01:35]}  h5 {[%clk 0:01:59]} 25. Re2 {[%clk 0:01:24]}  Nxf2 {[%clk 0:01:48]} 26. Rxf2 {[%clk 0:01:06]}  Qxe3 {[%clk 0:01:47]} 27. Qg6 {[%clk 0:01:04]}  Qg5 {[%clk 0:01:24]} 28. Qxg5 {[%clk 0:00:55]}  fxg5 {[%clk 0:01:24]} 29. Rf5 {[%clk 0:00:54]}  Re1+ {[%clk 0:01:24]} 30. Rxe1 {[%clk 0:00:50]}  Rxe1+ {[%clk 0:01:24]} 31. Kh2 {[%clk 0:00:47]}  Re4 {[%clk 0:01:22]} 32. Rxg5 {[%clk 0:00:46]}  h4 {[%clk 0:01:20]} 33. Rg4 {[%clk 0:00:45]}  Rxg4 {[%clk 0:01:18]} 34. hxg4 {[%clk 0:00:45]}  g5 {[%clk 0:01:16]} 35. g3 {[%clk 0:00:46]}  hxg3+ {[%clk 0:01:16]} 36. Kxg3 {[%clk 0:00:46]}  Kf7 {[%clk 0:01:17]} 37. Kf3 {[%clk 0:00:46]}  Ke6 {[%clk 0:01:17]} 38. a4 {[%clk 0:00:31]}  a5 {[%clk 0:01:16]} 39. Ke3 {[%clk 0:00:31]}  Kd6 {[%clk 0:01:16]} 40. Kd3 {[%clk 0:00:31]}  b6 {[%clk 0:01:15]} 41. Kc3 {[%clk 0:00:30]}  c5 {[%clk 0:01:15]} 42. Kd3 {[%clk 0:00:28]}  Kc6 {[%clk 0:01:11]} 43. Kc3 {[%clk 0:00:28]}  cxd4+ {[%clk 0:00:56]} 44. Kd2 {[%clk 0:00:23]}  Kc5 {[%clk 0:00:50]} 45. Kd3 {[%clk 0:00:22]}  Kb4 {[%clk 0:00:50]} 46. Kxd4 {[%clk 0:00:23]}  Kxb3 {[%clk 0:00:51]} 47. Kxd5 {[%clk 0:00:23]}  Kxa4 {[%clk 0:00:52]} 48. Ke5 {[%clk 0:00:20]}  b5 {[%clk 0:00:52]} 49. Kf5 {[%clk 0:00:20]}  b4 {[%clk 0:00:53]} 50. Kxg5 {[%clk 0:00:21]}  b3 {[%clk 0:00:54]} 51. Kf6 {[%clk 0:00:18]}  b2 {[%clk 0:00:55]} 52. g5 {[%clk 0:00:18]}  b1=Q {[%clk 0:00:55]} 53. g6 {[%clk 0:00:18]}  Qb8 {[%clk 0:00:54]} 54. Kf7 {[%clk 0:00:17]}  Qc7+ {[%clk 0:00:54]} 55. Kf8 {[%clk 0:00:16]}  Qd8+ {[%clk 0:00:54]} 0-1


[Site "https://www.chess.com"]

[Event "Titled Tuesday Blitz March 15 Early 2022"]
[White "Krasilnikov, Evgeni"]
[Black "Dejmek, Mark"]
[WhiteFideId "4139739"]
[BlackFideId "2017628"]
[WhiteElo "2206"]
[BlackElo "2224"]
[Result "1-0"]
[Round "03"]
[TimeControl "180+1"]
[Date "2022.03.15"]
[WhiteClock "0:00:15"]
[BlackClock "0:00:05"]

1. e4 {[%clk 0:03:00]}  e5 {[%clk 0:02:59]} 2. Nc3 {[%clk 0:03:00]}  Nf6 {[%clk 0:02:58]} 3. g3 {[%clk 0:02:59]}  d5 {[%clk 0:02:54]} 4. exd5 {[%clk 0:02:59]}  Nxd5 {[%clk 0:02:54]} 5. Bg2 {[%clk 0:02:59]}  Nxc3 {[%clk 0:02:55]} 6. bxc3 {[%clk 0:03:00]}  Bd6 {[%clk 0:02:49]} 7. Nf3 {[%clk 0:03:00]}  O-O {[%clk 0:02:49]} 8. O-O {[%clk 0:02:59]}  Re8 {[%clk 0:02:48]} 9. d4 {[%clk 0:02:57]}  Nc6 {[%clk 0:02:32]} 10. Bg5 {[%clk 0:02:48]}  f6 {[%clk 0:02:32]} 11. Be3 {[%clk 0:02:48]}  e4 {[%clk 0:02:24]} 12. Nd2 {[%clk 0:02:47]}  f5 {[%clk 0:02:24]} 13. c4 {[%clk 0:02:43]}  Bb4 {[%clk 0:02:10]} 14. d5 {[%clk 0:02:40]}  Ne5 {[%clk 0:02:00]} 15. Qe2 {[%clk 0:02:40]}  Qf6 {[%clk 0:01:33]} 16. Bd4 {[%clk 0:02:31]}  Qd6 {[%clk 0:00:55]} 17. Nb3 {[%clk 0:02:10]}  b6 {[%clk 0:00:40]} 18. f3 {[%clk 0:01:26]}  Ba6 {[%clk 0:00:32]} 19. Bxe5 {[%clk 0:01:22]}  Qxe5 {[%clk 0:00:28]} 20. fxe4 {[%clk 0:01:22]}  fxe4 {[%clk 0:00:28]} 21. Rf4 {[%clk 0:01:18]}  e3 {[%clk 0:00:19]} 22. Raf1 {[%clk 0:01:17]}  Rf8 {[%clk 0:00:16]} 23. Bh3 {[%clk 0:01:10]}  Rxf4 {[%clk 0:00:14]} 24. Rxf4 {[%clk 0:01:09]}  Bd6 {[%clk 0:00:14]} 25. Be6+ {[%clk 0:01:04]}  Kh8 {[%clk 0:00:14]} 26. Kg2 {[%clk 0:00:50]}  Qc3 {[%clk 0:00:14]} 27. Re4 {[%clk 0:00:48]}  Rf8 {[%clk 0:00:11]} 28. Rxe3 {[%clk 0:00:39]}  Qxc4 {[%clk 0:00:11]} 29. Qxc4 {[%clk 0:00:39]}  Bxc4 {[%clk 0:00:11]} 30. a4 {[%clk 0:00:28]}  a5 {[%clk 0:00:11]} 31. Rc3 {[%clk 0:00:25]}  Ba6 {[%clk 0:00:10]} 32. Re3 {[%clk 0:00:24]}  Bc4 {[%clk 0:00:08]} 33. Re4 {[%clk 0:00:24]}  Ba6 {[%clk 0:00:08]} 34. Nd4 {[%clk 0:00:23]}  Bc5 {[%clk 0:00:07]} 35. Nf5 {[%clk 0:00:22]}  Bb7 {[%clk 0:00:06]} 36. h4 {[%clk 0:00:19]}  h6 {[%clk 0:00:06]} 37. h5 {[%clk 0:00:18]}  Bxd5 {[%clk 0:00:06]} 38. Bxd5 {[%clk 0:00:18]}  Rxf5 {[%clk 0:00:06]} 39. Re8+ {[%clk 0:00:18]}  Kh7 {[%clk 0:00:06]} 40. Be4 {[%clk 0:00:15]}  g6 {[%clk 0:00:05]} 41. hxg6+ {[%clk 0:00:15]}  Kxg6 {[%clk 0:00:05]} 42. g4 {[%clk 0:00:15]} 1-0


[Site "https://www.chess.com"]

[Event "Titled Tuesday Blitz March 15 Early 2022"]
[White "Maksimovic, Bojan"]
[Black "Istvanovszki, Martin"]
[WhiteFideId "14408120"]
[BlackFideId "726958"]
[WhiteElo "2448"]
[BlackElo "2345"]
[Result "1-0"]
[Round "03"]
[TimeControl "180+1"]
[Date "2022.03.15"]
[WhiteClock "0:00:07"]
[BlackClock "0:00:23"]

1. e4 {[%clk 0:02:46]}  c5 {[%clk 0:02:50]} 2. Nf3 {[%clk 0:02:46]}  d6 {[%clk 0:02:50]} 3. d4 {[%clk 0:02:47]}  cxd4 {[%clk 0:02:51]} 4. Nxd4 {[%clk 0:02:48]}  Nf6 {[%clk 0:02:51]} 5. Nc3 {[%clk 0:02:48]}  g6 {[%clk 0:02:52]} 6. Be3 {[%clk 0:02:48]}  Bg7 {[%clk 0:02:52]} 7. f3 {[%clk 0:02:49]}  O-O {[%clk 0:02:53]} 8. Bc4 {[%clk 0:02:48]}  Nc6 {[%clk 0:02:53]} 9. Bb3 {[%clk 0:02:49]}  Bd7 {[%clk 0:02:53]} 10. h4 {[%clk 0:02:47]}  Ne5 {[%clk 0:02:53]} 11. Qd2 {[%clk 0:02:45]}  Rc8 {[%clk 0:02:52]} 12. O-O-O {[%clk 0:02:44]}  a5 {[%clk 0:02:53]} 13. h5 {[%clk 0:02:37]}  a4 {[%clk 0:02:53]} 14. Nxa4 {[%clk 0:02:29]}  Bxa4 {[%clk 0:02:53]} 15. Bxa4 {[%clk 0:02:30]}  Nc4 {[%clk 0:02:53]} 16. Qe1 {[%clk 0:02:28]}  Qb6 {[%clk 0:02:51]} 17. Bb3 {[%clk 0:02:27]}  Nxe3 {[%clk 0:02:51]} 18. Qxe3 {[%clk 0:02:28]}  Nxh5 {[%clk 0:02:51]} 19. Rxh5 {[%clk 0:02:19]}  gxh5 {[%clk 0:02:50]} 20. Nf5 {[%clk 0:02:06]}  Qxe3+ {[%clk 0:02:46]} 21. Nxe3 {[%clk 0:02:07]}  Bh6 {[%clk 0:02:38]} 22. Kd2 {[%clk 0:02:07]}  Rc5 {[%clk 0:02:35]} 23. Ke2 {[%clk 0:02:07]}  Bxe3 {[%clk 0:02:35]} 24. Kxe3 {[%clk 0:02:08]}  Kg7 {[%clk 0:02:34]} 25. c3 {[%clk 0:01:58]}  f5 {[%clk 0:02:33]} 26. Bd5 {[%clk 0:01:55]}  fxe4 {[%clk 0:02:30]} 27. Bxe4 {[%clk 0:01:56]}  h6 {[%clk 0:02:27]} 28. Rd4 {[%clk 0:01:50]}  b5 {[%clk 0:02:18]} 29. Bd3 {[%clk 0:01:47]}  Rg5 {[%clk 0:02:16]} 30. Kf2 {[%clk 0:01:45]}  Ra8 {[%clk 0:02:07]} 31. Re4 {[%clk 0:01:23]}  Rxa2 {[%clk 0:01:55]} 32. Rxe7+ {[%clk 0:01:23]}  Kf6 {[%clk 0:01:54]} 33. Re2 {[%clk 0:01:24]}  Re5 {[%clk 0:01:50]} 34. Rc2 {[%clk 0:01:22]}  Rc5 {[%clk 0:01:46]} 35. Re2 {[%clk 0:01:18]}  h4 {[%clk 0:01:41]} 36. Bb1 {[%clk 0:01:12]}  Ra1 {[%clk 0:01:39]} 37. Bc2 {[%clk 0:01:12]}  Rc1 {[%clk 0:01:34]} 38. Bb3 {[%clk 0:01:09]}  Re5 {[%clk 0:01:29]} 39. Rd2 {[%clk 0:01:10]}  Ke7 {[%clk 0:01:29]} 40. Bd1 {[%clk 0:01:04]}  Rb1 {[%clk 0:01:24]} 41. Be2 {[%clk 0:01:01]}  Ra1 {[%clk 0:01:14]} 42. Rd4 {[%clk 0:00:31]}  Ra4 {[%clk 0:01:13]} 43. Rd2 {[%clk 0:00:31]}  Rf4 {[%clk 0:01:08]} 44. Bd3 {[%clk 0:00:27]}  Kd7 {[%clk 0:01:06]} 45. Rc2 {[%clk 0:00:20]}  Kc6 {[%clk 0:01:05]} 46. b4 {[%clk 0:00:19]}  Rf8 {[%clk 0:00:54]} 47. Ra2 {[%clk 0:00:19]}  Kb6 {[%clk 0:00:50]} 48. c4 {[%clk 0:00:14]}  bxc4 {[%clk 0:00:49]} 49. Bxc4 {[%clk 0:00:15]}  Rg5 {[%clk 0:00:49]} 50. Ra6+ {[%clk 0:00:15]}  Kc7 {[%clk 0:00:48]} 51. Ra7+ {[%clk 0:00:15]}  Kc6 {[%clk 0:00:47]} 52. Ra6+ {[%clk 0:00:16]}  Kd7 {[%clk 0:00:36]} 53. Ra7+ {[%clk 0:00:16]}  Kc6 {[%clk 0:00:24]} 54. Ra6+ {[%clk 0:00:13]}  Kb7 {[%clk 0:00:24]} 55. Rxd6 {[%clk 0:00:13]}  h5 {[%clk 0:00:21]} 56. Rd4 {[%clk 0:00:11]}  h3 {[%clk 0:00:21]} 57. gxh3 {[%clk 0:00:10]}  Rgf5 {[%clk 0:00:21]} 58. Bd5+ {[%clk 0:00:08]}  Kb6 {[%clk 0:00:22]} 59. Be4 {[%clk 0:00:09]}  Rf4 {[%clk 0:00:22]} 60. Rd5 {[%clk 0:00:08]}  h4 {[%clk 0:00:22]} 61. Ke3 {[%clk 0:00:08]}  R4f6 {[%clk 0:00:22]} 62. Rh5 {[%clk 0:00:08]}  Rc8 {[%clk 0:00:21]} 63. Rxh4 {[%clk 0:00:08]}  Rc3+ {[%clk 0:00:22]} 64. Kf2 {[%clk 0:00:08]}  Rb3 {[%clk 0:00:22]} 65. Bd5 {[%clk 0:00:06]}  Rb2+ {[%clk 0:00:22]} 66. Kg3 {[%clk 0:00:07]}  Rd6 {[%clk 0:00:21]} 67. Bg8 {[%clk 0:00:04]}  Rg6+ {[%clk 0:00:21]} 68. Rg4 {[%clk 0:00:05]}  Rxg4+ {[%clk 0:00:21]} 69. hxg4 {[%clk 0:00:05]}  Rxb4 {[%clk 0:00:22]} 70. g5 {[%clk 0:00:06]}  Kc7 {[%clk 0:00:22]} 71. f4 {[%clk 0:00:06]}  Kd7 {[%clk 0:00:22]} 72. Kg4 {[%clk 0:00:07]}  Ke7 {[%clk 0:00:23]} 73. Bd5 {[%clk 0:00:06]}  Kf8 {[%clk 0:00:22]} 74. Kf5 {[%clk 0:00:07]}  Kg7 {[%clk 0:00:23]} 75. Ke5 {[%clk 0:00:07]}  Rb1 {[%clk 0:00:22]} 76. f5 {[%clk 0:00:07]}  Re1+ {[%clk 0:00:23]} 77. Be4 {[%clk 0:00:08]}  Re2 {[%clk 0:00:23]} 78. f6+ {[%clk 0:00:09]}  Kf7 {[%clk 0:00:24]} 79. Kf5 {[%clk 0:00:05]}  Rf2+ {[%clk 0:00:22]} 80. Kg4 {[%clk 0:00:06]}  Re2 {[%clk 0:00:22]} 81. Bd5+ {[%clk 0:00:06]}  Kf8 {[%clk 0:00:22]} 82. g6 {[%clk 0:00:05]}  Rd2 {[%clk 0:00:22]} 83. g7+ {[%clk 0:00:05]}  Ke8 {[%clk 0:00:21]} 84. g8=Q+ {[%clk 0:00:06]}  Kd7 {[%clk 0:00:22]} 85. Qe6+ {[%clk 0:00:06]}  Kc7 {[%clk 0:00:23]} 86. Qc6+ {[%clk 0:00:07]}  Kd8 {[%clk 0:00:23]} 87. Qd6+ {[%clk 0:00:07]}  Ke8 {[%clk 0:00:23]} 88. Qe7# {[%clk 0:00:07]} 1-0


[Site "https://www.chess.com"]

[Event "Titled Tuesday Blitz March 15 Early 2022"]
[White "Manukyan, Sargis A."]
[Black "Zhigalko, Sergei"]
[WhiteFideId "13303970"]
[BlackFideId "13502956"]
[WhiteElo "2187"]
[BlackElo "2662"]
[Result "1-0"]
[Round "03"]
[TimeControl "180+1"]
[Date "2022.03.15"]
[WhiteClock "0:00:22"]
[BlackClock "0:00:01"]

1. d4 {[%clk 0:03:00]}  Nf6 {[%clk 0:03:00]} 2. c4 {[%clk 0:02:55]}  e6 {[%clk 0:03:00]} 3. Nc3 {[%clk 0:02:52]}  Bb4 {[%clk 0:03:00]} 4. a3 {[%clk 0:02:52]}  Bxc3+ {[%clk 0:03:00]} 5. bxc3 {[%clk 0:02:53]}  O-O {[%clk 0:02:57]} 6. f3 {[%clk 0:02:51]}  d5 {[%clk 0:02:48]} 7. cxd5 {[%clk 0:02:48]}  exd5 {[%clk 0:02:49]} 8. e3 {[%clk 0:02:47]}  Bf5 {[%clk 0:02:48]} 9. Bd3 {[%clk 0:02:46]}  Bxd3 {[%clk 0:02:39]} 10. Qxd3 {[%clk 0:02:47]}  c5 {[%clk 0:02:40]} 11. Ne2 {[%clk 0:02:47]}  Nc6 {[%clk 0:02:39]} 12. O-O {[%clk 0:02:47]}  Re8 {[%clk 0:02:40]} 13. Ra2 {[%clk 0:02:43]}  Rc8 {[%clk 0:02:38]} 14. g4 {[%clk 0:02:42]}  Qa5 {[%clk 0:02:15]} 15. Ng3 {[%clk 0:02:20]}  Re6 {[%clk 0:01:39]} 16. Rg2 {[%clk 0:02:17]}  Ne7 {[%clk 0:01:22]} 17. g5 {[%clk 0:02:04]}  Nd7 {[%clk 0:01:21]} 18. f4 {[%clk 0:01:47]}  cxd4 {[%clk 0:01:06]} 19. cxd4 {[%clk 0:01:46]}  Qc3 {[%clk 0:01:05]} 20. Qd1 {[%clk 0:01:33]}  Rec6 {[%clk 0:01:03]} 21. Bd2 {[%clk 0:01:22]}  Qxa3 {[%clk 0:00:56]} 22. Qg4 {[%clk 0:01:18]}  Nf8 {[%clk 0:00:48]} 23. f5 {[%clk 0:01:09]}  Qd3 {[%clk 0:00:37]} 24. f6 {[%clk 0:01:02]}  Neg6 {[%clk 0:00:37]} 25. fxg7 {[%clk 0:01:00]}  Ne6 {[%clk 0:00:36]} 26. Nf5 {[%clk 0:00:48]}  R8c7 {[%clk 0:00:27]} 27. Qf3 {[%clk 0:00:40]}  Nxg7 {[%clk 0:00:07]} 28. Nh6+ {[%clk 0:00:36]}  Kf8 {[%clk 0:00:07]} 29. Qxd5 {[%clk 0:00:35]}  Qc4 {[%clk 0:00:04]} 30. Qd8+ {[%clk 0:00:34]}  Ne8 {[%clk 0:00:04]} 31. Rgf2 {[%clk 0:00:31]}  Rd6 {[%clk 0:00:01]} 32. Bb4 {[%clk 0:00:21]}  Qxb4 {[%clk 0:00:01]} 33. Rxf7+ {[%clk 0:00:21]}  Rxf7 {[%clk 0:00:01]} 34. Rxf7# {[%clk 0:00:22]} 1-0


[Site "https://www.chess.com"]

[Event "Titled Tuesday Blitz March 15 Early 2022"]
[White "Marson, Juan Miguel"]
[Black "Borodavkin, Anatoly"]
[WhiteFideId "106585"]
[BlackFideId "14150662"]
[WhiteElo "2053"]
[BlackElo "1845"]
[Result "1-0"]
[Round "03"]
[TimeControl "180+1"]
[Date "2022.03.15"]
[WhiteClock "0:00:14"]
[BlackClock "0:00:15"]

1. e4 {[%clk 0:02:58]}  e5 {[%clk 0:03:00]} 2. Nf3 {[%clk 0:02:58]}  Nf6 {[%clk 0:03:00]} 3. Nxe5 {[%clk 0:02:56]}  d6 {[%clk 0:03:00]} 4. Nf3 {[%clk 0:02:56]}  Nxe4 {[%clk 0:03:01]} 5. Nc3 {[%clk 0:02:57]}  Nxc3 {[%clk 0:03:01]} 6. dxc3 {[%clk 0:02:58]}  Be7 {[%clk 0:03:01]} 7. Bf4 {[%clk 0:02:57]}  Be6 {[%clk 0:03:01]} 8. Qd2 {[%clk 0:02:57]}  Nc6 {[%clk 0:03:01]} 9. O-O-O {[%clk 0:02:57]}  Qd7 {[%clk 0:03:02]} 10. a3 {[%clk 0:02:53]}  a6 {[%clk 0:02:59]} 11. Be2 {[%clk 0:02:33]}  O-O-O {[%clk 0:02:59]} 12. Rhe1 {[%clk 0:02:34]}  Bf6 {[%clk 0:02:58]} 13. Bg5 {[%clk 0:02:30]}  Bxg5 {[%clk 0:02:54]} 14. Nxg5 {[%clk 0:02:30]}  h6 {[%clk 0:02:53]} 15. Nxe6 {[%clk 0:02:29]}  fxe6 {[%clk 0:02:53]} 16. Bg4 {[%clk 0:02:28]}  Rde8 {[%clk 0:02:54]} 17. Qe3 {[%clk 0:02:00]}  Kb8 {[%clk 0:02:41]} 18. Bxe6 {[%clk 0:01:53]}  Qd8 {[%clk 0:02:42]} 19. Qg3 {[%clk 0:01:48]}  g5 {[%clk 0:02:24]} 20. Bd5 {[%clk 0:01:39]}  Ne5 {[%clk 0:02:12]} 21. Bf3 {[%clk 0:00:59]}  Qf6 {[%clk 0:02:08]} 22. Bh5 {[%clk 0:00:54]}  Ref8 {[%clk 0:02:04]} 23. f3 {[%clk 0:00:52]}  Rh7 {[%clk 0:01:59]} 24. Re4 {[%clk 0:00:47]}  Re7 {[%clk 0:01:49]} 25. Qe1 {[%clk 0:00:46]}  Rg7 {[%clk 0:01:29]} 26. Kb1 {[%clk 0:00:45]}  Qf5 {[%clk 0:01:14]} 27. Bg4 {[%clk 0:00:43]}  Nxg4 {[%clk 0:01:11]} 28. fxg4 {[%clk 0:00:33]}  Qf2 {[%clk 0:01:02]} 29. Re8+ {[%clk 0:00:33]}  Ka7 {[%clk 0:01:02]} 30. Rxf8 {[%clk 0:00:33]}  Qxf8 {[%clk 0:01:01]} 31. Qe3+ {[%clk 0:00:33]}  b6 {[%clk 0:00:59]} 32. Re1 {[%clk 0:00:21]}  Qc8 {[%clk 0:00:50]} 33. h3 {[%clk 0:00:18]}  Rf7 {[%clk 0:00:47]} 34. b3 {[%clk 0:00:17]}  Qf8 {[%clk 0:00:45]} 35. Kb2 {[%clk 0:00:17]}  Rf2 {[%clk 0:00:44]} 36. Qe4 {[%clk 0:00:17]}  Qf7 {[%clk 0:00:36]} 37. Qc6 {[%clk 0:00:16]}  Qh7 {[%clk 0:00:27]} 38. Qe4 {[%clk 0:00:10]}  Qxe4 {[%clk 0:00:26]} 39. Rxe4 {[%clk 0:00:11]}  Rxg2 {[%clk 0:00:26]} 40. Re6 {[%clk 0:00:11]}  Rg3 {[%clk 0:00:22]} 41. Rxh6 {[%clk 0:00:12]}  Kb7 {[%clk 0:00:23]} 42. Rh5 {[%clk 0:00:12]}  Kc6 {[%clk 0:00:22]} 43. c4 {[%clk 0:00:12]}  b5 {[%clk 0:00:20]} 44. cxb5+ {[%clk 0:00:12]}  axb5 {[%clk 0:00:20]} 45. Kc1 {[%clk 0:00:13]}  Rg1+ {[%clk 0:00:19]} 46. Kd2 {[%clk 0:00:13]}  Rg2+ {[%clk 0:00:20]} 47. Kd3 {[%clk 0:00:13]}  Rg3+ {[%clk 0:00:20]} 48. Ke4 {[%clk 0:00:14]}  Rg2 {[%clk 0:00:20]} 49. Rxg5 {[%clk 0:00:13]}  Rxc2 {[%clk 0:00:20]} 50. h4 {[%clk 0:00:14]}  Rc3 {[%clk 0:00:20]} 51. h5 {[%clk 0:00:14]}  Rxb3 {[%clk 0:00:20]} 52. h6 {[%clk 0:00:15]}  Rxa3 {[%clk 0:00:19]} 53. h7 {[%clk 0:00:15]}  Ra4+ {[%clk 0:00:18]} 54. Kf5 {[%clk 0:00:15]}  Ra8 {[%clk 0:00:15]} 55. Rg8 {[%clk 0:00:15]}  Ra5 {[%clk 0:00:15]} 56. h8=Q {[%clk 0:00:15]}  b4+ {[%clk 0:00:16]} 57. Ke6 {[%clk 0:00:16]}  Re5+ {[%clk 0:00:16]} 58. Kf7 {[%clk 0:00:15]}  b3 {[%clk 0:00:15]} 59. Qh1+ {[%clk 0:00:15]}  Rd5 {[%clk 0:00:15]} 60. Ke6 {[%clk 0:00:14]} 1-0


[Site "https://www.chess.com"]

[Event "Titled Tuesday Blitz March 15 Early 2022"]
[White "Martic, Ivan"]
[Black "Thavandiran, Shiyam"]
[WhiteFideId "929301"]
[BlackFideId "2605058"]
[WhiteElo "2317"]
[BlackElo "2357"]
[Result "0-1"]
[Round "03"]
[TimeControl "180+1"]
[Date "2022.03.15"]
[WhiteClock "0:00:14"]
[BlackClock "0:01:03"]

1. e4 {[%clk 0:02:38]}  c6 {[%clk 0:02:59]} 2. d4 {[%clk 0:02:36]}  d5 {[%clk 0:02:59]} 3. Nd2 {[%clk 0:02:37]}  dxe4 {[%clk 0:02:59]} 4. Nxe4 {[%clk 0:02:38]}  Nf6 {[%clk 0:02:59]} 5. Nxf6+ {[%clk 0:02:38]}  exf6 {[%clk 0:03:00]} 6. c3 {[%clk 0:02:38]}  Bd6 {[%clk 0:03:00]} 7. Bd3 {[%clk 0:02:37]}  O-O {[%clk 0:03:01]} 8. Qc2 {[%clk 0:02:38]}  Re8+ {[%clk 0:03:01]} 9. Ne2 {[%clk 0:02:38]}  h5 {[%clk 0:03:01]} 10. Be3 {[%clk 0:02:36]}  Nd7 {[%clk 0:03:01]} 11. O-O-O {[%clk 0:02:33]}  b5 {[%clk 0:03:01]} 12. h3 {[%clk 0:02:30]}  Nb6 {[%clk 0:03:00]} 13. g4 {[%clk 0:02:17]}  h4 {[%clk 0:02:59]} 14. Bh7+ {[%clk 0:02:13]}  Kh8 {[%clk 0:02:58]} 15. Bf5 {[%clk 0:02:13]}  Nd5 {[%clk 0:02:59]} 16. Bxc8 {[%clk 0:02:01]}  Qxc8 {[%clk 0:03:00]} 17. Qd2 {[%clk 0:01:55]}  Nxe3 {[%clk 0:02:44]} 18. fxe3 {[%clk 0:01:56]}  Qe6 {[%clk 0:02:44]} 19. Kb1 {[%clk 0:01:29]}  Qxe3 {[%clk 0:02:43]} 20. Nc1 {[%clk 0:01:28]}  Qe4+ {[%clk 0:02:10]} 21. Ka1 {[%clk 0:01:28]}  Bg3 {[%clk 0:02:11]} 22. Nd3 {[%clk 0:01:26]}  a5 {[%clk 0:02:09]} 23. Rhf1 {[%clk 0:01:24]}  Kg8 {[%clk 0:02:05]} 24. g5 {[%clk 0:01:16]}  f5 {[%clk 0:01:57]} 25. Nc5 {[%clk 0:01:16]}  Qd5 {[%clk 0:01:57]} 26. g6 {[%clk 0:01:12]}  fxg6 {[%clk 0:01:52]} 27. Qg5 {[%clk 0:01:12]}  Kh7 {[%clk 0:01:46]} 28. Nd3 {[%clk 0:00:44]}  b4 {[%clk 0:01:35]} 29. Nf4 {[%clk 0:00:39]}  Qf7 {[%clk 0:01:35]} 30. Rg1 {[%clk 0:00:22]}  bxc3 {[%clk 0:01:34]} 31. bxc3 {[%clk 0:00:21]}  Re4 {[%clk 0:01:15]} 32. Rxg3 {[%clk 0:00:19]}  hxg3 {[%clk 0:01:15]} 33. Qxg3 {[%clk 0:00:20]}  Rae8 {[%clk 0:01:12]} 34. h4 {[%clk 0:00:19]}  Re3 {[%clk 0:01:11]} 35. Qg5 {[%clk 0:00:19]}  Re1 {[%clk 0:01:11]} 36. Rxe1 {[%clk 0:00:14]}  Rxe1+ {[%clk 0:01:12]} 37. Kb2 {[%clk 0:00:14]}  Rh1 {[%clk 0:01:08]} 38. h5 {[%clk 0:00:14]}  Rh2+ {[%clk 0:01:04]} 39. Kc1 {[%clk 0:00:14]}  gxh5 {[%clk 0:01:03]} 0-1


[Site "https://www.chess.com"]

[Event "Titled Tuesday Blitz March 15 Early 2022"]
[White "Matinian, Nikita"]
[Black "Mortazavi, Ali"]
[WhiteFideId "24129100"]
[BlackFideId "401323"]
[WhiteElo "2422"]
[BlackElo "2339"]
[Result "1-0"]
[Round "03"]
[TimeControl "180+1"]
[Date "2022.03.15"]
[WhiteClock "0:00:20"]
[BlackClock "0:00:10"]

1. e4 {[%clk 0:02:43]}  c6 {[%clk 0:02:59]} 2. Nc3 {[%clk 0:02:42]}  d5 {[%clk 0:02:59]} 3. Nf3 {[%clk 0:02:43]}  dxe4 {[%clk 0:03:00]} 4. Nxe4 {[%clk 0:02:44]}  Nf6 {[%clk 0:03:00]} 5. Qe2 {[%clk 0:02:44]}  Be6 {[%clk 0:03:01]} 6. Neg5 {[%clk 0:02:25]}  Bd5 {[%clk 0:03:00]} 7. c4 {[%clk 0:02:24]}  h6 {[%clk 0:03:01]} 8. cxd5 {[%clk 0:02:21]}  hxg5 {[%clk 0:03:01]} 9. Nxg5 {[%clk 0:02:19]}  Qxd5 {[%clk 0:02:48]} 10. h4 {[%clk 0:02:19]}  e6 {[%clk 0:02:48]} 11. Qc4 {[%clk 0:02:03]}  Nbd7 {[%clk 0:02:34]} 12. Qxd5 {[%clk 0:02:00]}  Nxd5 {[%clk 0:02:34]} 13. a3 {[%clk 0:01:55]}  Be7 {[%clk 0:02:32]} 14. d4 {[%clk 0:01:49]}  Bf6 {[%clk 0:02:14]} 15. Nf3 {[%clk 0:01:41]}  O-O-O {[%clk 0:02:09]} 16. g3 {[%clk 0:01:39]}  c5 {[%clk 0:02:04]} 17. dxc5 {[%clk 0:01:34]}  Nxc5 {[%clk 0:02:03]} 18. Bc4 {[%clk 0:01:34]}  Nb6 {[%clk 0:02:01]} 19. Be2 {[%clk 0:01:32]}  Nb3 {[%clk 0:01:53]} 20. Rb1 {[%clk 0:01:32]}  Nxc1 {[%clk 0:01:24]} 21. Rxc1+ {[%clk 0:01:33]}  Kb8 {[%clk 0:01:24]} 22. b3 {[%clk 0:01:20]}  Bb2 {[%clk 0:01:18]} 23. Rc2 {[%clk 0:01:21]}  Bxa3 {[%clk 0:01:18]} 24. O-O {[%clk 0:01:21]}  f6 {[%clk 0:01:02]} 25. Ra1 {[%clk 0:01:19]}  Bb4 {[%clk 0:01:00]} 26. Kf1 {[%clk 0:01:13]}  Rd7 {[%clk 0:01:00]} 27. Ng1 {[%clk 0:01:02]}  Rhd8 {[%clk 0:00:57]} 28. Nh3 {[%clk 0:01:02]}  e5 {[%clk 0:00:53]} 29. h5 {[%clk 0:00:48]}  a6 {[%clk 0:00:47]} 30. Ng1 {[%clk 0:00:45]}  Rd2 {[%clk 0:00:41]} 31. Raa2 {[%clk 0:00:38]}  Rxc2 {[%clk 0:00:39]} 32. Rxc2 {[%clk 0:00:39]}  Rd2 {[%clk 0:00:32]} 33. Rxd2 {[%clk 0:00:37]}  Bxd2 {[%clk 0:00:33]} 34. Nf3 {[%clk 0:00:37]}  Bc3 {[%clk 0:00:32]} 35. Nh4 {[%clk 0:00:37]}  Bd2 {[%clk 0:00:28]} 36. f4 {[%clk 0:00:26]}  exf4 {[%clk 0:00:25]} 37. Nf5 {[%clk 0:00:26]}  f3 {[%clk 0:00:16]} 38. Bxf3 {[%clk 0:00:26]}  Bh6 {[%clk 0:00:16]} 39. Ke2 {[%clk 0:00:25]}  Kc7 {[%clk 0:00:17]} 40. Kd3 {[%clk 0:00:25]}  Nd7 {[%clk 0:00:17]} 41. Ke4 {[%clk 0:00:24]}  Ne5 {[%clk 0:00:17]} 42. Be2 {[%clk 0:00:23]}  a5 {[%clk 0:00:17]} 43. Nxh6 {[%clk 0:00:23]}  gxh6 {[%clk 0:00:17]} 44. Kf5 {[%clk 0:00:23]}  Kc6 {[%clk 0:00:14]} 45. Kxf6 {[%clk 0:00:22]}  Nd7+ {[%clk 0:00:11]} 46. Kg7 {[%clk 0:00:21]}  b5 {[%clk 0:00:11]} 47. Kxh6 {[%clk 0:00:21]}  Kd6 {[%clk 0:00:12]} 48. Kg7 {[%clk 0:00:21]}  a4 {[%clk 0:00:10]} 49. bxa4 {[%clk 0:00:21]}  bxa4 {[%clk 0:00:10]} 50. h6 {[%clk 0:00:21]}  Ne5 {[%clk 0:00:09]} 51. h7 {[%clk 0:00:19]}  a3 {[%clk 0:00:10]} 52. h8=Q {[%clk 0:00:20]} 1-0


[Site "https://www.chess.com"]